Cogmind - Beta 17 @@@ ROGUE MODE // 2026.08.06 @ 21:32:30 Player: 4R-ZE3 Result: Destroyed by G-67 Veteran with Plasma Rifle Performance ------------- Evolutions (4) 2000 Regions Visited (9) 1800 Robots Destroyed (31) 155 Value Destroyed (737) 737 Prototype IDs (18) 360 Alien Tech Used (0) 0 Bonus (1140) 1140 TOTAL SCORE: 6192 Bonus ------- Follower Combat Kills 40 Registered with UFD 300 Met Optimus in HQ 500 Met Data Miner 300 Cogmind --------- Core Integrity 0/850 Matter 233/300 Energy 98/100 System Corruption 4% Temperature Cool (46) Movement Core (50) Location -5/Proximity Caves Parts ------- > --- POWER (2) -------- (None) > --- PROPULSION (6) --- (None) > --- UTILITY (5) ------ Experimental Signal Interpreter Improved Melee Analysis Suite > --- WEAPON (2) ------- Makeshift Axe > --- INVENTORY (5) ---- High-capacity Storage Unit Improved Sensor Array System Shield Heavy Ion Cannon Peak State ------------ > --- POWER ------------ Light Fission Core Micro Fission Core > --- PROPULSION ------- Flexi-carbon Leg Flexi-carbon Leg Flexi-carbon Leg Armored Leg Improved VSS Leg Xenon Bombardment Thruster > --- UTILITY ---------- High-capacity Storage Unit Experimental Signal Interpreter Improved Melee Analysis Suite Improved Reaction Control System Layered Medium Armor Plating > --- WEAPON ----------- Heavy Plasma Cannon Falx > --- INVENTORY -------- Neutrino Core Medium Treads Improved Gravmag System Antigrav System Xenon Bombardment Thruster Xenon Bombardment Thruster Coolant Injector Medium Storage Unit Improved Sensor Array Improved Terrain Scanner Stasis Canceller Medium Reflective Plating System Shield Heavy Ion Cannon Rocket Launcher Makeshift Axe Makeshift Axe [Rating: 79] Favorites ----------- Power Improved Ion Engine Engine Improved Ion Engine Power Core Micro Fission Core Propulsion Flexi-carbon Leg Treads Light Treads Leg Flexi-carbon Leg Wheel Wheel Hover Unit Improved Gravmag System Flight Unit Xenon Bombardment Thruster Utility Huge Storage Unit Device Improved Sensor Array Storage Huge Storage Unit Processor Improved Melee Analysis Suite Hackware Hacking Suite Protection Medium Armor Plating Weapon Falx Energy Gun Particle Gun Energy Cannon Heavy Plasma Cannon Ballistic Gun Subdweller Machine Gun Launcher Grenade Launcher Slashing Weapon Falx Build | -11 -10 -10 -9 -9 -6 -6 -6 -6 -5 ------- Run | Yrd Mat Sub Rec Scr Fac Low Low Dat Pro Slots Evolved 8 | . . . . . 8 . . . . Power 1 | . . . . . 1 . . . . Propulsion 4 | . . . . . 4 . . . . Utility 3 | . . . . . 3 . . . . Weapon . | . . . . . . . . . . Parts Attached 56 | 7 6 7 3 1 21 4 1 . 6 Power 7 | 1 . 1 1 . 2 1 1 . . Engine 3 | 1 . 1 1 . . . . . . Core 4 | . . . . . 2 1 1 . . Reactor . | . . . . . . . . . . Propulsion 19 | 2 . 4 . 1 10 . . . 2 Treads 2 | 2 . . . . . . . . . Leg 6 | . . . . . 5 . . . 1 Wheel 5 | . . 4 . 1 . . . . . Hover 1 | . . . . . . . . . 1 Flight 5 | . . . . . 5 . . . . Utility 18 | 2 3 . 1 . 7 3 . . 2 Device 5 | 1 . . . . 2 2 . . . Storage 4 | 1 2 . . . 1 . . . . Processor 3 | . . . . . 3 . . . . Hackware 1 | . . . . . 1 . . . . Protection 5 | . 1 . 1 . . 1 . . 2 Artifact . | . . . . . . . . . . Weapon 12 | 2 3 2 1 . 2 . . . 2 Energy Gun 5 | 1 2 1 1 . . . . . . Energy Cannon 1 | . . . . . 1 . . . . Ballistic Gun 2 | 1 . 1 . . . . . . . Ballistic Cannon . | . . . . . . . . . . Launcher 2 | . 1 . . . . . . . 1 Special Weapon . | . . . . . . . . . . Impact Weapon . | . . . . . . . . . . Slashing Weapon 2 | . . . . . 1 . . . 1 Piercing Weapon . | . . . . . . . . . . Special Melee Weapon . | . . . . . . . . . . Unidentified Prototypes . | . . . . . . . . . . Parts Lost 23 | . . 6 . . 5 . 2 . 10 Power 5 | . . 2 . . 2 . . . 1 Propulsion 11 | . . 2 . . 2 . 1 . 6 Utility 4 | . . 1 . . 1 . 1 . 1 Weapon 3 | . . 1 . . . . . . 2 Highest Loss Streak 6 | . . 5 . . 2 . 2 . 6 To Critical Strikes . | . . . . . . . . . . Average Backups 16 | . 9 16 21 22 8 11 18 19 17 Power . | . . . . . . . 2 3 2 Propulsion 3 | . 1 4 3 4 1 4 5 5 4 Utility 4 | . 2 3 3 5 4 5 7 7 5 Weapon 7 | . 5 9 14 11 1 2 4 4 3 Tool/Special . | . . . . . . . . . . Unused Backups 27 | . . . . 11 7 . . . 9 Power 3 | . . . . . 1 . . . 2 Propulsion 4 | . . . . 2 . . . . 2 Utility 6 | . . . . . 3 . . . 3 Weapon 14 | . . . . 9 3 . . . 2 Tool/Special . | . . . . . . . . . . Average Slot Usage (%) 94 | . 100 97 97 100 78 95 96 86 77 Engine 8 | . 14 13 12 14 2 . . . . Core 3 | . . . . . 3 8 13 13 8 Treads 5 | . 28 18 . . . . . . . Leg 10 | . . . . . 9 33 31 26 22 Wheel 10 | . . 9 28 28 . . . . . Flight 3 | . . . . . 20 6 6 6 5 Device 3 | . 2 . . . 8 7 11 6 5 Storage 10 | . 14 14 14 14 6 6 6 6 5 Processor 5 | . . . . . 12 13 13 13 13 Protection 7 | . 11 12 12 14 . . . . 1 Energy Gun 9 | . 14 27 14 14 . . . . . Energy Cannon 2 | . . . . . 2 6 6 6 5 Ballistic Gun 6 | . 13 . 14 14 . . . . . Slashing Weapon 2 | . . . . . 5 6 6 6 5 Peak Build Rating 79 | 9 9 11 15 18 68 79 79 68 77 Average Rating 34 | 5 8 8 14 16 52 70 75 68 60 On Entrance 34 | . 9 8 9 15 18 66 79 68 68 Avg Prop Armor Cover (%) 2 | . . . . 3 4 1 1 2 2 Naked Turns . | . . . . . . . . . . Heaviest Build 101 | 14 92 94 101 101 101 76 76 70 77 Greatest Support 91 | 40 40 40 30 30 91 91 91 71 87 Greatest Overweight (x) 10 | . 2 4 3 10 5 . . . 3 Average Overweight (x) 1 | . 1 2 2 4 . . . . . Largest Inventory Capacity 25 | 8 25 25 25 25 25 20 20 20 20 Average Capacity 21 | 7 20 25 25 25 10 19 20 20 18 Most Carried 25 | 2 16 19 23 25 20 17 19 19 19 Average Carried 16 | . 9 16 21 22 9 12 18 19 17 Final Capacity 25 | 8 25 25 25 25 10 20 20 20 5 Final Carried 22 | 1 16 16 22 20 10 17 19 19 4 Class Distribution -------------------- 95% | Mutant Dominant Class ---------------- Mutant | -10/Materials Mutant | -10/Subcaves Mutant | -9/Recycling Mutant | -9/Scraptown Mutant | -6/Factory Mutant | -6/Lower Caves Mutant | -6/Lower Caves Mutant | -6/Data Miner Mutant | -5/Proximity Caves Resources | -11 -10 -10 -9 -9 -6 -6 -6 -6 -5 ----------- Run | Yrd Mat Sub Rec Scr Fac Low Low Dat Pro Matter Collected 901 | 166 254 103 54 10 130 134 40 . 10 Remotely . | . . . . . . . . . . Salvage Created 1044 | 16 262 152 . . 210 100 . . 304 Parts 65 | 4 23 12 . . 8 7 . . 11 Haulers Intercepted 2 | . 1 . . . 1 . . . . Recyclers Shooed 2 | . 1 . . . 1 . . . . Parts Field Recycled . | . . . . . . . . . . Retrieved Matter . | . . . . . . . . . . Parts Self-Destructed 24 | . . 9 . . . 3 . . 12 Prevented . | . . . . . . . . . . Parts Restored . | . . . . . . . . . . Kills | -11 -10 -10 -9 -9 -6 -6 -6 -6 -5 ------- Run | Yrd Mat Sub Rec Scr Fac Low Low Dat Pro Combat Hostiles Destroyed 22 | . 8 8 . . 1 . . . 5 Melee 4 | . . . . . 1 . . . 3 Guns 9 | . 5 4 . . . . . . . AOE 9 | . 3 4 . . . . . . 2 Classes Destroyed 14 | 1 4 2 . . 3 1 . . 3 Worker 3 | . 3 . . . . . . . . Tunneler 1 | 1 . . . . . . . . . Hauler 2 | . 1 . . . 1 . . . . Operator 1 | . . . . . 1 . . . . Turret 1 | . . 1 . . . . . . . Watcher 1 | . . . . . 1 . . . . Swarmer 13 | . 6 7 . . . . . . . Grunt 3 | . 2 . . . . . . . 1 Duelist 1 | . . . . . . . . . 1 Sentry 1 | . . . . . . . . . 1 Hunter 1 | . . . . . 1 . . . . Programmer 2 | . . . . . . . . . 2 Subdweller 1 | . . 1 . . . . . . . Decomposer 1 | . . . . . . 1 . . . Samaritan 2 | . . . . . . 2 . . . Best Kill Streak 5 | 1 4 5 . . 1 . . . 2 Combat Bots Only 4 | . 3 4 . . 1 . . . 2 Max Kills in Single Turn 3 | 1 3 3 . . 1 1 . . 2 Gunslinging . | . . . . . . . . . . Exploded 3 | . 3 3 . . . . . . 2 Melee 1 | . . . . . 1 . . . 1 Uniques/NPCs Destroyed . | . . . . . . . . . . Combat | -11 -10 -10 -9 -9 -6 -6 -6 -6 -5 -------- Run | Yrd Mat Sub Rec Scr Fac Low Low Dat Pro Hostile Shots Fired 372 | . 27 86 . . 91 . 55 . 113 Missed 135 | . 6 23 . . 37 . 29 . 40 Hits 237 | . 21 63 . . 54 . 26 . 73 Projectile 237 | . 21 63 . . 54 . 26 . 73 AOE 1 | . . . . . 1 . . . . Critical Strikes 4 | . 1 . . . . . . . 3 Damage Taken 3196 | . 219 527 . . 772 . 249 . 1429 Core 1011 | . 29 119 . . 115 . 44 . 704 Absorbed by Shields . | . . . . . . . . . . Core Remaining (%) 70 | 100 . . . 40 . . . . . Volleys Fired 63 | 1 32 25 1 . 3 . . . 1 Largest 2 | 2 2 2 1 . 1 . . . 1 Hottest 110 | 60 60 110 65 . 90 . . . 33 Shots Fired 112 | 2 62 43 1 . 3 . . . 1 Gun 105 | 2 61 41 1 . . . . . . Cannon 3 | . . . . . 3 . . . . Launcher 4 | . 1 2 . . . . . . 1 Special . | . . . . . . . . . . Kinetic 35 | 1 31 3 . . . . . . . Thermal 73 | 1 30 38 1 . 3 . . . . Explosive 4 | . 1 2 . . . . . . 1 Electromagnetic . | . . . . . . . . . . Robot Hit Streak 10 | 1 10 7 . . . . . . 1 Robot Miss Streak 3 | 1 3 3 1 . . . . . . Penetration Max . | . . . . . . . . . . Secondary Targets 2 | . . 2 . . . . . . . Max Gunslinging Chain 1 | . . 1 . . . . . . . Shots Hit Robots 95 | 1 40 24 . . 14 3 . . 13 Core Hits 46 | 1 16 12 . . 3 3 . . 11 Critical Kills 1 | . . 1 . . . . . . . Critical Parts Destroyed 2 | . 2 . . . . . . . . Critical Strikes 9 | . 2 3 . . 2 . . . 2 Burn 2 | . . 2 . . . . . . . Destroy 3 | . 2 1 . . . . . . . Sever 4 | . . . . . 2 . . . 2 Melee Attacks 63 | . . . . . 41 4 . . 18 Impact . | . . . . . . . . . . Slashing 63 | . . . . . 41 4 . . 18 Piercing . | . . . . . . . . . . Sneak Attacks 6 | . . . . . 2 3 . . 1 Combat Hostiles 1 | . . . . . . . . . 1 Follow-up Attacks . | . . . . . . . . . . Damage Inflicted 3093 | 12 627 511 . . 855 283 . . 805 Guns 827 | 12 488 327 . . . . . . . Cannons . | . . . . . . . . . . Explosions 549 | . 139 184 . . . . . . 226 Melee 1717 | . . . . . 855 283 . . 579 Ramming . | . . . . . . . . . . Kinetic 341 | . 305 36 . . . . . . . Thermal 486 | 12 183 291 . . . . . . . Explosive 549 | . 139 184 . . . . . . 226 Electromagnetic . | . . . . . . . . . . Impact . | . . . . . . . . . . Slashing 1717 | . . . . . 855 283 . . 579 Piercing . | . . . . . . . . . . Highest Corruption 4 | . . . . . 2 2 . . 4 Average Corruption 2 | . . . . . 1 1 . . 3 Corruption Purged 2 | . . . . . . 2 . . . Corruption Blocked . | . . . . . . . . . . Effects 17 | . . . . . . 11 . . 6 Message Errors 4 | . . . . . . 3 . . 1 Matter Fused 5 | . . . . . . 3 . . 2 Heat Flow Errors 5 | . . . . . . 4 . . 1 Energy Discharges 2 | . . . . . . 1 . . 1 Data Loss (minor) 1 | . . . . . . . . . 1 Overload Shots . | . . . . . . . . . . Overflow Damage 138 | . 12 16 . . 71 . . . 39 Projectiles . | . . . . . . . . . . Explosions 28 | . 12 16 . . . . . . . Melee 110 | . . . . . 71 . . . 39 Knockbacks . | . . . . . . . . . . Impact . | . . . . . . . . . . Kinetic . | . . . . . . . . . . Secondary . | . . . . . . . . . . Self-Inflicted Damage 39 | . . 39 . . . . . . . Shots 2 | . . 2 . . . . . . . Rammed . | . . . . . . . . . . Targets Rammed . | . . . . . . . . . . Kicked . | . . . . . . . . . . Crushed . | . . . . . . . . . . Highest Temperature 263 | . 162 9 32 . 132 263 1 . 192 Average Temperature 49 | . 47 4 21 . 13 114 1 . 99 Received Heat Transfer 592 | . 72 246 . . 30 . 24 . 220 Siege Activations . | . . . . . . . . . . Martial Activations . | . . . . . . . . . . Shielding Activations . | . . . . . . . . . . Robots Disrupted . | . . . . . . . . . . Combat Hostiles . | . . . . . . . . . . Robots Corrupted . | . . . . . . . . . . Combat Hostiles . | . . . . . . . . . . Parts Fried . | . . . . . . . . . . Impact Corruptions . | . . . . . . . . . . Robots Melted . | . . . . . . . . . . Combat Hostiles . | . . . . . . . . . . Parts Melted 1 | . . 1 . . . . . . . Heat Transferred 1255 | 25 425 805 . . . . . . . Parts Sabotaged . | . . . . . . . . . . Parts Stolen . | . . . . . . . . . . Parts Stripped . | . . . . . . . . . . Power Chain Reactions . | . . . . . . . . . . Alert | -11 -10 -10 -9 -9 -6 -6 -6 -6 -5 ------- Run | Yrd Mat Sub Rec Scr Fac Low Low Dat Pro Maximum Alert Level . | . . . . . . . . . . Low Security (%) 100 | 100 100 . 100 . 100 . . . . Level 1 . | . . . . . . . . . . Level 2 . | . . . . . . . . . . Level 3 . | . . . . . . . . . . Level 4 . | . . . . . . . . . . Level 5 . | . . . . . . . . . . High Security . | . . . . . . . . . . Max Security . | . . . . . . . . . . Peak Influence 99 | 5 99 . 30 . 57 . . . . Initial 30 | . . . 30 . . . . . . Average 10 | . 18 . 2 . 7 . . . . Influence Increases 929 | 5 235 215 4 . 235 . 30 . 205 Destroy 0b10 Robot/C 480 | . 160 160 . . 20 . . . 140 Destroy 0b10 Robot/NC 40 | 5 20 . . . 15 . . . . Destroy Leader 66 | . 32 10 . . 14 . . . 10 Allied During Kill 10 | . . . . . . . . . 10 Successful Hack 63 | . 14 . 4 . 45 . . . . Disable Machine 15 | . . . . . 15 . . . . Destroy Structure 30 | . 9 . . . 21 . . . . Partial Spotted 45 | . . . . . 45 . . . . Lose Combat Pursuer 180 | . . 45 . . 60 . 30 . 45 Influence Decreases 850 | 5 235 152 67 . 220 15 30 . 126 Entered New Map 39 | . . . 33 . . 6 . . . Time Decay 660 | 5 235 102 34 . 199 9 30 . 46 Lost Part 131 | . . 50 . . 21 . . . 60 Lost Ally 20 | . . . . . . . . . 20 Squads Dispatched 7 | . . . . . 6 . . . 1 Investigation 2 | . . . . . 2 . . . . Extermination 2 | . . . . . 2 . . . . Reinforcement 2 | . . . . . 2 . . . . Assault 1 | . . . . . . . . . 1 Garrison . | . . . . . . . . . . Intercept . | . . . . . . . . . . Searches Triggered . | . . . . . . . . . . Construction Impeded . | . . . . . . . . . . Haulers Reinforced 1 | . . . . . 1 . . . . Active Scanning Responses . | . . . . . . . . . . Cargo Convoy Interrupts . | . . . . . . . . . . Stealth | -11 -10 -10 -9 -9 -6 -6 -6 -6 -5 --------- Run | Yrd Mat Sub Rec Scr Fac Low Low Dat Pro Distress Signals . | . . . . . . . . . . Communications Jammed . | . . . . . . . . . . Distress Signals . | . . . . . . . . . . Times Spotted 57 | . 15 12 . . 10 1 2 . 17 Peak Tracking Total 15 | . 3 5 . . 4 1 1 . 15 Tactical Retreats 7 | . . 2 . . 2 . 2 . 1 Traps | -11 -10 -10 -9 -9 -6 -6 -6 -6 -5 ------- Run | Yrd Mat Sub Rec Scr Fac Low Low Dat Pro Traps Triggered 1 | . . . . . 1 . . . . Indirectly . | . . . . . . . . . . Trap Hack Attempts . | . . . . . . . . . . Triggered . | . . . . . . . . . . Disarmed . | . . . . . . . . . . Reprogrammed . | . . . . . . . . . . Reused . | . . . . . . . . . . Traps Extracted . | . . . . . . . . . . Installed . | . . . . . . . . . . Triggered . | . . . . . . . . . . Machines | -11 -10 -10 -9 -9 -6 -6 -6 -6 -5 ---------- Run | Yrd Mat Sub Rec Scr Fac Low Low Dat Pro Machines Disabled 2 | . . 1 . . 1 . . . . Max in Single Turn 1 | . . 1 . . 1 . . . . Machines Repaired . | . . . . . . . . . . Machines Dismantled . | . . . . . . . . . . Machines Sabotaged . | . . . . . . . . . . Overloaded Fab Kills . | . . . . . . . . . . Hacking | -11 -10 -10 -9 -9 -6 -6 -6 -6 -5 --------- Run | Yrd Mat Sub Rec Scr Fac Low Low Dat Pro Machines Accessed 24 | . 3 . 8 1 7 1 . 4 . Terminals 11 | . 3 . 4 . 4 . . . . Fabricators . | . . . . . . . . . . Repair Stations . | . . . . . . . . . . Recycling Units 6 | . . . 4 . 2 . . . . Scanalyzers 1 | . . . . . 1 . . . . Garrison Access . | . . . . . . . . . . Total Hacks 71 | . 5 . 22 3 10 1 . 30 . Successful 48 | . 1 . 9 3 4 1 . 30 . Failed 22 | . 4 . 12 . 6 . . . . Catastrophic 6 | . . . 4 . 2 . . . . Database Lockouts 1 | . . . 1 . . . . . . Manual 25 | . 5 . 11 . 9 . . . . Terminals 22 | . 5 . 12 . 5 . . . . Fabricators . | . . . . . . . . . . Repair Stations . | . . . . . . . . . . Recycling Units 14 | . . . 10 . 4 . . . . Scanalyzers 1 | . . . . . 1 . . . . Garrison Access . | . . . . . . . . . . Terminal Hacks 36 | . . . 2 3 . 1 . 30 . Record 14 | . . . . 3 . . . 11 . Part Schematic 12 | . . . . . . . . 12 . Robot Schematic 4 | . . . . . . . . 4 . Robot Analysis 1 | . . . 1 . . . . . . Prototype ID Bank 3 | . . . . . . . . 3 . Open Door 1 | . . . . . . 1 . . . Zone Layout 1 | . . . 1 . . . . . . Fabricator Hacks . | . . . . . . . . . . Repair Station Hacks . | . . . . . . . . . . Recycling Unit Hacks 4 | . . . 4 . . . . . . Retrieve Components 4 | . . . 4 . . . . . . Scanalyzer 1 | . . . . . 1 . . . . Retrieve Study 1 | . . . . . 1 . . . . Garrison Access Hacks . | . . . . . . . . . . Unauthorized Hacks 7 | . 1 . 3 . 3 . . . . Terminals 6 | . 1 . 3 . 2 . . . . Botnet 6 | . 1 . 3 . 2 . . . . Fabricators . | . . . . . . . . . . Repair Stations . | . . . . . . . . . . Recycling Units 1 | . . . . . 1 . . . . Fedlink 1 | . . . . . 1 . . . . Scanalyzers . | . . . . . . . . . . Garrison Access . | . . . . . . . . . . Data Cores Recovered . | . . . . . . . . . . Used . | . . . . . . . . . . Hacking Detections 15 | . 3 . 6 . 6 . . . . Full Trace Events 2 | . . . 2 . . . . . . Feedback Events . | . . . . . . . . . . Feedback Blocked . | . . . . . . . . . . Robot Schematics Acquired 4 | . . . . . . . . 4 . Robots Built . | . . . . . . . . . . Authchips . | . . . . . . . . . . Time . | . . . . . . . . . . Total Robot Build Rating . | . . . . . . . . . . Part Schematics Acquired 12 | . . . . . . . . 12 . Parts Built . | . . . . . . . . . . Authchips . | . . . . . . . . . . Time . | . . . . . . . . . . Total Part Build Rating . | . . . . . . . . . . Part Studies Acquired 1 | . . . . . 1 . . . . Parts Repaired . | . . . . . . . . . . Time . | . . . . . . . . . . Parts Recycled . | . . . . . . . . . . Recycled Matter . | . . . . . . . . . . Retrieved Matter . | . . . . . . . . . . Retrieved Components 5 | . . . 5 . . . . . . Parts Scanalyzed . | . . . . . . . . . . Part Schematics Acquired . | . . . . . . . . . . Parts Damaged . | . . . . . . . . . . Bothacking | -11 -10 -10 -9 -9 -6 -6 -6 -6 -5 ------------ Run | Yrd Mat Sub Rec Scr Fac Low Low Dat Pro Used RIF Installer . | . . . . . . . . . . Robots Hacked . | . . . . . . . . . . Non-combat . | . . . . . . . . . . Combat . | . . . . . . . . . . Robot Hacks Applied . | . . . . . . . . . . Relay Couplers Released . | . . . . . . . . . . Fabnet Peak Effective % . | . . . . . . . . . . Robots Rewired . | . . . . . . . . . . Allies Hacked . | . . . . . . . . . . Hacks Repelled . | . . . . . . . . . . Allies | -11 -10 -10 -9 -9 -6 -6 -6 -6 -5 -------- Run | Yrd Mat Sub Rec Scr Fac Low Low Dat Pro Total Allies 1 | . . . . . . . . . 1 Largest Group 1 | . . . . . . . . . 1 Highest-Rated Group 96 | . . . . . . . . . 96 Highest-Rated Ally 96 | . . . . . . . . . 96 Initial UFD Resources 35 | . . . . . 23 33 33 33 35 Total Orders . | . . . . . . . . . . Ally Attacks 5 | . . . . . . . . . 5 Total Damage 141 | . . . . . . . . . 141 Kills 2 | . . . . . . . . . 2 Allies Corrupted 1 | . . . . . . . . . 1 Allies Melted . | . . . . . . . . . . Intel | -11 -10 -10 -9 -9 -6 -6 -6 -6 -5 ------- Run | Yrd Mat Sub Rec Scr Fac Low Low Dat Pro Active Infowar (turns) 3432 | 12 198 . . . 695 946 770 91 720 Sensors 3222 | . . . . . 695 946 770 91 720 Terrain 210 | 12 198 . . . . . . . . Robot Analysis Total 1 | . . . 1 . . . . . . Derelict Logs Recovered 6 | . . . . 2 . . 2 . 2 Drone Launches . | . . . . . . . . . . Drone Recoveries . | . . . . . . . . . . Exploration | -11 -10 -10 -9 -9 -6 -6 -6 -6 -5 ------------- Run | Yrd Mat Sub Rec Scr Fac Low Low Dat Pro Turns Passed 8382 | 78 1257 721 601 2231 824 1015 772 91 792 Spaces Moved 5545 | 42 439 267 423 1413 929 804 644 82 502 Core 61 | 3 . . . . . . . . 58 Treads 623 | 39 439 145 . . . . . . . Legs 2156 | . . . . . 197 804 644 82 429 Wheels 1964 | . . 122 423 1413 6 . . . . Hover 12 | . . . . . . . . . 12 Flight 729 | . . . . . 726 . . . 3 Fastest Speed 28 | 50 160 119 119 131 28 114 112 112 34 Average Speed 136 | 152 255 236 130 156 61 114 113 112 135 Slowest Speed 320 | 160 320 320 131 230 190 114 114 112 200 Overloaded Moves . | . . . . . . . . . . Propulsion Burnouts . | . . . . . . . . . . Robots Hopped 1 | . . . . . 1 . . . . Potential Cave-ins . | . . . . . . . . . . Cave-ins Triggered . | . . . . . . . . . . Exploration Rate (%) 55 | 4 58 21 76 83 16 80 81 70 64 Regions Visited 9 Branch Regions 7 Pre-discovered Areas 3 | . . . . 1 . . 1 1 . Known Exits Taken 4 | . . . . . 1 1 1 1 . Unknown Exits Taken 5 | 1 1 1 1 1 . . . . . Scrap Searched 13 | . . . . 8 . 3 1 . 1 Spaces Dug 23 | . . . . . 22 1 . . . Terrain Destroyed 44 | . 8 6 . . 22 1 . . 7 Melee 20 | . . . . . 19 1 . . . Projectile 3 | . . . . . 3 . . . . AOE 21 | . 8 6 . . . . . . 7 Terrain Rammed . | . . . . . . . . . . Walls Destroyed . | . . . . . . . . . . Machines Disabled . | . . . . . . . . . . Actions | -11 -10 -10 -9 -9 -6 -6 -6 -6 -5 --------- Run | Yrd Mat Sub Rec Scr Fac Low Low Dat Pro Total 6132 | 51 510 311 471 1447 1101 893 684 81 583 Wait 290 | . 21 7 38 . 78 67 37 . 42 Move 5534 | 41 438 266 422 1412 926 803 643 81 502 Hop 1 | . . . . . 1 . . . . Pick Up 62 | 2 11 4 6 16 12 10 1 . . Fast Attach 21 | 6 1 . 2 . 9 1 . . 2 Attach 21 | 1 . 4 . 1 9 1 . . 5 Detach 2 | . 1 . . . . . . . 1 Swap 24 | . 6 5 1 . 4 4 2 . 2 Drop 49 | . . . 1 18 18 2 . . 10 Fire 63 | 1 32 25 1 . 3 . . . 1 Melee 63 | . . . . . 41 4 . . 18 Ram . | . . . . . . . . . . Kick . | . . . . . . . . . . Crush . | . . . . . . . . . . Escape Stasis . | . . . . . . . . . . Rewire 1 | . . . . . . . 1 . . Trap . | . . . . . . . . . . Miscellaneous 1 | . . . . . . 1 . . . Route ------- -11/Scrapyard -10/Materials (discovered 3 exits: [*Mat] / [*Min] / [*Sub]) -10/Subcaves (discovered 2 exits: [*Mat] / *Rec) -9/Recycling (discovered 2 exits: [*Fac] / *Scr) -9/Scraptown (discovered 2 exits: *Fac x2) -6/Factory -6/Lower Caves -6/Lower Caves (discovered 2 exits: *Fac / *Dat) -6/Data Miner -5/Proximity Caves History --------- Turn | Location | Event 4 | -11/Scrapyard | Discovered new exit (range 15) 79 | -11/Scrapyard | Entered Materials 317 | -10/Materials | Build established: Mutant 475 | -10/Materials | Discovered new exit (range 15) 1307 | -10/Materials | Discovered new exit (range 16) 1316 | -10/Materials | Discovered new exit (range 6) 1336 | -10/Materials | Entered Subcaves 1513 | -10/Subcaves | A swath of the cavern ceiling suddenly collapsed 1669 | -10/Subcaves | Discovered new exit (range 14) 1903 | -10/Subcaves | Shifting Twisted Machinery released Battle Cannon 1937 | -10/Subcaves | Shifting Twisted Machinery released Sub. Machine Gun 1984 | -10/Subcaves | Discovered new exit (range 16) 2030 | -10/Subcaves | Core integrity fell below 50% 2057 | -10/Subcaves | Entered Recycling 2058 | -9/Recycling | Met a Zionite searching for Scraptown 2062 | -9/Recycling | Lost 5 parts (1p2n1u1w) 2441 | -9/Recycling | Discovered new exit (range 16) 2618 | -9/Recycling | Scanned before Scraplab entrance 2645 | -9/Recycling | Entered Scraplab 2656 | -9/Recycling | Discovered new exit (range 3) 2658 | -9/Recycling | Entered Scraptown 2755 | -9/Scraptown | Scanned Subdweller tech in exchange for log data 2759 | -9/Scraptown | Learned location of Armory (-4) 2761 | -9/Scraptown | Learned Research security intel 2845 | -9/Scraptown | Visited UFD Registry 2845 | -9/Scraptown | Registered with UFD as "Nanobox" 2869 | -9/Scraptown | Visited CPS Storage 2880 | -9/Scraptown | Visited Bundlers 3214 | -9/Scraptown | Visited Observation Area 3232 | -9/Scraptown | Visited Curators Association 3270 | -9/Scraptown | Visited Supply Room 3362 | -9/Scraptown | Visited Infowarlord's Domain 3391 | -9/Scraptown | Visited Research Penetration Think Tank 3442 | -9/Scraptown | Visited Derelict Rescue Squad 3456 | -9/Scraptown | Found DRS Beacon 3490 | -9/Scraptown | Visited LU-1G1's Boring Crew 3522 | -9/Scraptown | Visited Scrap Suit Storage 3561 | -9/Scraptown | Visited Science Testing Area 3598 | -9/Scraptown | Visited Abandonware Association 3634 | -9/Scraptown | Learned abandonware demo "REBOOT5.EXE" 3634 | -9/Scraptown | Learned abandonware demo "ERRANTS.EXE" 4246 | -9/Scraptown | Discovered new exit (range 11) 4331 | -9/Scraptown | Visited TADAMA 4640 | -9/Scraptown | Found Exp. Signal Interpreter 4799 | -9/Scraptown | Met Optimus 4799 | -9/Scraptown | Accepted into 0bPrime 4886 | -9/Scraptown | Discovered new exit (range 3) 4889 | -9/Scraptown | Entered Factory 4889 | -6/Factory | Evolved 8 slots: Power x1, Propulsion x4, Utility x3 5611 | -6/Factory | Discovered new exit (range 5) 5615 | -6/Factory | Identified exit to Lower Caves 5638 | -6/Factory | Loaded intel: 8 recycling unit locations 5713 | -6/Factory | Entered Lower Caves 6025 | -6/Lower Caves | Encountered a Warlord checkpoint 6214 | -6/Lower Caves | Activated DRS Beacon 6283 | -6/Lower Caves | Spotted B-75 Beast 6564 | -6/Lower Caves | Discovered new exit (range 10) 6727 | -6/Lower Caves | Identified exit to Lower Caves 6728 | -6/Lower Caves | Entered another Lower Caves area 6772 | -6/Lower Caves | Discovered new exit (range 6) 6777 | -6/Lower Caves | Identified exit to Factory 6892 | -6/Lower Caves | Encountered a Warlord checkpoint 7074 | -6/Lower Caves | Learned Factory garrison access intel 7083 | -6/Lower Caves | Spotted B-75 Beast 7490 | -6/Lower Caves | Discovered new exit (range 10) 7499 | -6/Lower Caves | Identified exit to Data Miner 7500 | -6/Lower Caves | Entered Data Miner 7500 | -6/Data Miner | Discovered new exit (range 6) 7522 | -6/Data Miner | Met Data Miner 7546 | -6/Data Miner | Learned location of Section 7 (-2) 7546 | -6/Data Miner | Acquired the access code to Warlord's prototype stash 7565 | -6/Data Miner | Received God Mode back door access code from Data Miner 7590 | -6/Data Miner | Identified exit to Proximity Caves 7591 | -6/Data Miner | Entered Proximity Caves 7811 | -5/Proximity Caves | Learned Factory security intel 7920 | -5/Proximity Caves | Lost 4 parts (1p2n1u) 8307 | -5/Proximity Caves | Attracted the attention of an 0b10 outpost 8332 | -5/Proximity Caves | Core integrity fell below 50% 8339 | -5/Proximity Caves | Attracted the attention of an 0b10 checkpoint 8347 | -5/Proximity Caves | Escorted by Enhanced Grunt 8364 | -5/Proximity Caves | Lost 6 parts (4n2w) 8375 | -5/Proximity Caves | Core integrity fell below 20% 8383 | -5/Proximity Caves | Destroyed by G-67 Veteran with Plasma Rifle Last Messages --------------- 08339_ Y-64 Sentinel: "INTERCEPTING UNREGISTERED DERELICT." 08340_ C-45 Heavy ARC bursts open, deploying its payload. 08340_ B-60 Warrior unfolds itself. 08340_ G-50 Soldier unfolds itself. 08346_ Penetrated by Slug. 08347_ Enhanced Grunt: "Protecting LRC-V3." 08347_ E-15 Imp destroyed. 08370_ Y-64 Sentinel Imp. Medium Armor Plating severed. 08371_ Penetrated by Slug. 08372_ Y-64 Sentinel destroyed. 08375_ Acquired Imp. Medium Armor Plating. 08378_ Imp. Treads fries itself beyond repair. 08378_ Wave Gun fries itself beyond repair. 08378_ Dropped Imp. Medium Armor Plating. 08382_ Adv. Heat Sink fries itself beyond repair. 08383_ Critical hit (Burn: +50). Map ----- +----------------------------------------------------+ | ?????????????????????????????????????????????????? | | ?????????????????????????????????????????????????? | | ?????????????????????????????????????????????????? | | ?????????????????????????????????????????????????? | | ?????????????????????????????????????????????????? | | ?????????????????????????????????????????????????? | | ?????????????????????????????????????????????????? | | ?????????????????????????????????????????????????? | | ?????????????????????????????????????????????????? | | ?????????????????????????????????????????????????? | | ??????????????????????? ??????????????????????? | | ?????????????????????? ??????????????????????? | | ?????????????????????? ??????????????????????? | | ?????????????????????? ??????????????????????? | | ??????????????????????# ??????????????????????? | | ??????????????????????# ??????????????????????? | | ??????????????????????# #????????????????????? | | ?????????????#???????## ?????????????????????? | | ####??????? #????## ?????????????????????? | | # ##??????? ##### ??????????????????????? | | ####????? ??????????????????????? | | ##????# #??????????????????????? | | ###### ? #??????????????????????? | | ### ## " #??# ##?????????????????????? | | #?# #?# "%"#### #?????????????????????? | | #?## #?# " ## @#??????????????????????? | | #?## ### ##?????????????????????? | | ### ## ###???????????????????? | | =! b #???????????????????? | | *]! / Y bg #???????????????????? | | ###### =% #gg ##???????????????????? | | #????# = # # b #####????????????????? | | #????## # # l #????????????????? | | ##" ### # % ##???????????????? | | #?# ########! [ #???????????????? | | ### ### ####?????##! ##??????????????? | | "#?# #??## ##????????# ##?????????????? | | ##?###????###?????????# ##????????????? | | ##????????????????????# #????????????? | | #####????????????????## ## #???????????? | | #?????????????????# ##?# #??????????? | | #?????????????????## #???########??????????? | | ##??????????????????####?????????????????????? | | ##????????????????????????????????????????????? | | ####?????????????????????????????????????????????? | | #????????????????????????????????????????????????? | | #????????????????????????????????????????????????? | | #???????????????????????????????????????????????? | | #??????###??????????????????????????????????????? | | #????### ##?????????????????????????????????????? | +----------------------------------------------------+ Best States ------------- Heat Dissipation 37 Energy Generation 28 Energy Capacity 360 Matter Stores 300 Matter Capacity 300 Sight Range 16 Robot Scan Range 15 Terrain Scan Range 16 Terrain Scan Density 10 Armor Coverage 225 Resistance: TH 15 Evasion (%) 74 Melee Accuracy 12 Recoil Reduction 2 Offensive Hacking 10 Item Schematics ----------------- Combat Drone Bay | -6/Data Miner | Free Lgt. Regenerative Plating | -6/Data Miner | Free Cld. Gravmag System | -6/Data Miner | Free Prc. Energy Filter | -6/Data Miner | Free Neutron Cannon | -6/Data Miner | Free Centrium Wheel | -6/Data Miner | Free Adv. Particle Charger | -6/Data Miner | Free Hvy. Disruptor Cannon | -6/Data Miner | Free Imp. Remote Datajack | -6/Data Miner | Free Adv. Thermal Shield | -6/Data Miner | Free Adv. Component Analysis Suite | -6/Data Miner | Free Adv. Corruption Screen | -6/Data Miner | Free Robot Schematics ------------------ L-41 Fighter | -6/Data Miner | Free Y-64 Sentinel | -6/Data Miner | Free H-66 Slayer | -6/Data Miner | Free A-27 Freighter | -6/Data Miner | Free Fabricated ------------ Nothing Repaired ---------- Nothing Studied --------- Xenon Bombardment Thruster | -6/Factory | Hacked Alien Tech Used ----------------- None Achievements -------------- None Challenges ------------ None Game ------ Seed BlinkThermicDissipator Manual? 0 Play Time 00:50:37 Cumulative 184.5 hours Start 2026.08.06 @ 20:41:19 End 2026.08.06 @ 21:32:30 Sessions 1 Manual Loads 0 Difficulty Rogue Special Mode None Game No. 200 Rogue 146 Adventurer 54 Explorer 0 Win Type - Total 9 Types 5/0/1/1/0/0/0/1/0/1 Lore% 68 Gallery% 59 Achievement% 56 Wizard Run 0 Options --------- Layout 1 ASCII 0 Keyboard 0 Movement Mouse Keybinds 1 Fullscreen 2 Font 32/Tamsyn Map View 50x35 Zoom Use 0% Tactical HUD 1 Map Filters NONE Filters NONE Steam 1 RUN: 72a3202b-0007-4b4c-932c-026caa8a9395